Cogmind - Beta 9.1 @@@ ROGUE MODE // 2019.11.02 @ 14:39:12 Player: z2oh Result: Destroyed by G-34 Mercenary with Small Laser Performance ------------- Evolutions (0) 0 Regions Visited (1) 200 Robots Destroyed (5) 25 Value Destroyed (203) 203 Prototype IDs (0) 0 Alien Tech Used (0) 0 Bonus (0) 0 TOTAL SCORE: 428 Bonus ------- None Cogmind --------- Core Integrity 0/250 Matter 290/300 Energy 97/100 System Corruption 0% Temperature Cool (210) Location -10/Materials Parts ------- Power (1) Propulsion (2) Utility (2) Medium Storage Unit Sensor Array Weapon (2) Particle Gun Assault Rifle Inventory (8) Heat Sink Medium Storage Unit Medium Laser Welding Torch Peak State ------------ Power Light Ion Engine Propulsion Wheel Wheel Utility Medium Storage Unit Sensor Array Weapon Particle Gun Assault Rifle Inventory Heat Sink Medium Storage Unit Medium Laser Welding Torch [Rating: 8] Favorites ----------- Power Light Ion Engine Engine Light Ion Engine Propulsion Wheel Wheel Wheel Utility Sensor Array Device Sensor Array Storage Medium Storage Unit Weapon Assault Rifle Energy Gun Medium Laser Ballistic Gun Assault Rifle Build | -11 -10 ------- Run | Scr Mat Slots Evolved . | . . Power . | . . Propulsion . | . . Utility . | . . Weapon . | . . Parts Attached 9 | 6 3 Power 1 | 1 . Engine 1 | 1 . Core . | . . Reactor . | . . Propulsion 2 | 2 . Treads . | . . Leg . | . . Wheel 2 | 2 . Hover . | . . Flight . | . . Utility 3 | 1 2 Device 2 | 1 1 Storage 1 | . 1 Processor . | . . Hackware . | . . Protection . | . . Artifact . | . . Weapon 3 | 2 1 Energy Gun 2 | 1 1 Energy Cannon . | . . Ballistic Gun 1 | 1 . Ballistic Cannon . | . . Launcher . | . . Special Weapon . | . . Impact Weapon . | . . Slashing Weapon . | . . Piercing Weapon . | . . Special Melee Weapon . | . . Unidentified Prototypes . | . . Parts Lost 3 | . 3 Power 1 | . 1 Propulsion 2 | . 2 Utility . | . . Weapon . | . . Highest Loss Streak 3 | . 3 Average Slot Usage (%) 96 | . 96 Engine 14 | . 14 Wheel 27 | . 27 Device 14 | . 14 Storage 10 | . 10 Energy Gun 14 | . 14 Ballistic Gun 14 | . 14 Naked Turns . | . . Heaviest Build 17 | 8 17 Greatest Support 20 | 20 20 Greatest Overweight (x) . | . . Average Overweight (x) . | . . Largest Inventory Capacity 8 | 4 8 Average Capacity 6 | 4 7 Most Carried 4 | 2 4 Average Carried 2 | . 2 Final Capacity 8 | 4 8 Final Carried 4 | . 4 Class Distribution -------------------- 100% | Mutant Dominant Class ---------------- Mutant | -10/Materials Resources | -11 -10 ----------- Run | Scr Mat Matter Collected 301 | 275 26 Remotely . | . . Salvage Created 153 | 32 121 Parts 11 | 3 8 Haulers Intercepted . | . . Recyclers Shooed . | . . Parts Field Recycled . | . . Retrieved Matter . | . . Parts Self-Destructed . | . . Prevented . | . . Kills | -11 -10 ------- Run | Scr Mat Combat Hostiles Destroyed 5 | 1 4 Guns 2 | 1 1 AOE 3 | . 3 Classes Destroyed 1 | 1 . Grunt 5 | 1 4 Best Kill Streak 3 | 1 3 Combat Bots Only 3 | 1 3 Max Kills in Single Turn 3 | 1 3 Gunslinging . | . . Exploded 3 | . 3 Melee . | . . Uniques/NPCs Destroyed . | . . Combat | -11 -10 -------- Run | Scr Mat Damage Taken 478 | 34 444 Core 250 | 12 238 Absorbed by Shields . | . . Core Remaining (%) 95 | 95 . Volleys Fired 12 | 5 7 Largest 2 | 2 2 Hottest 85 | 70 85 Shots Fired 24 | 10 14 Gun 24 | 10 14 Cannon . | . . Launcher . | . . Special . | . . Kinetic 12 | 5 7 Thermal 12 | 5 7 Explosive . | . . Electromagnetic . | . . Robot Hit Streak 8 | 3 8 Robot Miss Streak 1 | 1 1 Penetration Max . | . . Secondary Targets 1 | . 1 Max Gunslinging Chain 1 | . 1 Shots Hit Robots 16 | 7 9 Core Hits 10 | 2 8 Critical Hits . | . . Critical Kills . | . . Critical Parts Destroyed . | . . Melee Attacks . | . . Impact . | . . Slashing . | . . Piercing . | . . Sneak Attacks . | . . Combat Hostiles . | . . Follow-up Attacks . | . . Damage Inflicted 773 | 73 700 Guns 192 | 73 119 Cannons . | . . Explosions 581 | . 581 Melee . | . . Ramming . | . . Kinetic 89 | 25 64 Thermal 684 | 48 636 Explosive . | . . Electromagnetic . | . . Impact . | . . Slashing . | . . Piercing . | . . Highest Corruption . | . . Average Corruption . | . . Corruption Purged . | . . Overload Shots . | . . Overflow Damage 18 | . 18 Projectiles . | . . Explosions 18 | . 18 Melee . | . . Knockbacks . | . . Impact . | . . Kinetic . | . . Secondary . | . . Self-Inflicted Damage 114 | . 114 Shots 1 | . 1 Rammed . | . . Targets Rammed . | . . Kicked . | . . Crushed . | . . Highest Temperature 198 | 54 198 Average Temperature 58 | 31 76 Received Heat Transfer 201 | 18 183 Siege Activations . | . . Robots Corrupted . | . . Combat Hostiles . | . . Parts Fried . | . . Impact Corruptions . | . . Robots Melted . | . . Combat Hostiles . | . . Parts Melted 1 | 1 . Heat Transferred 596 | 148 448 Parts Sabotaged . | . . Parts Stolen . | . . Parts Stripped . | . . Power Chain Reactions . | . . Missiles Intercepted . | . . Alert | -11 -10 ------- Run | Scr Mat Peak Influence 163 | 20 163 Average Influence 30 | 3 43 Maximum Alert Level . | . . Low Security (%) 100 | . . Level 1 . | . . Level 2 . | . . Level 3 . | . . Level 4 . | . . Level 5 . | . . High Security . | . . Max Security . | . . Squads Dispatched 2 | . 2 Investigation 1 | . 1 Extermination . | . . Reinforcement 1 | . 1 Assault . | . . Garrison . | . . Intercept . | . . Construction Impeded . | . . Haulers Reinforced . | . . Stealth | -11 -10 --------- Run | Scr Mat Distress Signals 1 | . 1 Communications Jammed . | . . Distress Signals . | . . Times Spotted 10 | 1 9 Peak Tracking Total 6 | 1 6 Tactical Retreats . | . . Traps | -11 -10 ------- Run | Scr Mat Traps Triggered . | . . Indirectly . | . . Trap Hack Attempts . | . . Triggered . | . . Disarmed . | . . Reprogrammed . | . . Reused . | . . Traps Extracted . | . . Installed . | . . Triggered . | . . Machines | -11 -10 ---------- Run | Scr Mat Machines Disabled 2 | . 2 Max in Single Turn 2 | . 2 Machines Sabotaged . | . . Garrisons Compromised . | . . Overloaded Fab Kills . | . . Fab Network Shutdowns . | . . Hacking | -11 -10 --------- Run | Scr Mat Machines Accessed 1 | . 1 Terminals 1 | . 1 Fabricators . | . . Repair Stations . | . . Recycling Units . | . . Scanalyzers . | . . Garrison Access . | . . Total Hacks 3 | . 3 Successful . | . . Failed 3 | . 3 Catastrophic . | . . Database Lockouts . | . . Manual . | . . Terminals 3 | . 3 Fabricators . | . . Repair Stations . | . . Recycling Units . | . . Scanalyzers . | . . Garrison Access . | . . Terminal Hacks . | . . Fabricator Hacks . | . . Repair Station Hacks . | . . Recycling Unit Hacks . | . . Scanalyzer . | . . Garrison Access Hacks . | . . Unauthorized Hacks . | . . Terminals . | . . Fabricators . | . . Repair Stations . | . . Recycling Units . | . . Scanalyzers . | . . Garrison Access . | . . Data Cores Recovered . | . . Used . | . . Hacking Detections 1 | . 1 Full Trace Events 1 | . 1 Feedback Events . | . . Feedback Blocked . | . . Robot Schematics Acquired . | . . Robots Built . | . . Matter . | . . Time . | . . Total Robot Build Rating . | . . Part Schematics Acquired . | . . Parts Built . | . . Matter . | . . Time . | . . Total Part Build Rating . | . . Parts Repaired . | . . Time . | . . Parts Recycled . | . . Recycled Matter . | . . Retrieved Matter . | . . Retrieved Components . | . . Parts Scanalyzed . | . . Part Schematics Acquired . | . . Parts Damaged . | . . Bothacking | -11 -10 ------------ Run | Scr Mat Used RIF Installer . | . . Robots Hacked . | . . Non-combat . | . . Combat . | . . Robot Hacks Applied . | . . Relay Couplers Released . | . . Robots Rewired . | . . Allies Hacked . | . . Hacks Repelled . | . . Allies | -11 -10 -------- Run | Scr Mat Total Allies . | . . Largest Group . | . . Highest-Rated Group . | . . Highest-Rated Ally . | . . Total Orders . | . . Ally Attacks . | . . Total Damage . | . . Kills . | . . Allies Corrupted . | . . Allies Melted . | . . Intel | -11 -10 ------- Run | Scr Mat Robot Analysis Total . | . . Derelict Logs Recovered . | . . Drone Launches . | . . Drone Recoveries . | . . Exploration | -11 -10 ------------- Run | Scr Mat Turns Passed 235 | 78 157 Spaces Moved 215 | 67 148 Core 22 | 22 . Treads . | . . Legs . | . . Wheels 193 | 45 148 Hover . | . . Flight . | . . Fastest Speed 50 | 50 80 Average Speed 76 | 70 80 Slowest Speed 80 | 80 80 Overloaded Moves . | . . Propulsion Burnouts . | . . Robots Hopped . | . . Cave-ins Triggered . | . . Exploration Rate (%) 17 | 6 28 Regions Visited 1 Branch Regions . Pre-discovered Areas . | . . Known Exits Taken . | . . Unknown Exits Taken 1 | 1 . Scrap Searched . | . . Spaces Dug . | . . Terrain Destroyed 31 | . 31 Melee . | . . Projectile . | . . AOE 31 | . 31 Actions | -11 -10 --------- Run | Scr Mat Total 261 | 89 172 Wait 9 | . 9 Move 214 | 66 148 Hop . | . . Pick Up 14 | 9 5 Fast Attach . | . . Attach 7 | 6 1 Detach . | . . Swap 2 | . 2 Drop 3 | 3 . Fire 12 | 5 7 Melee . | . . Ram . | . . Kick . | . . Crush . | . . Escape Stasis . | . . Rewire . | . . Trap . | . . Miscellaneous . | . . Route ------- -11/Scrapyard -10/Materials History --------- Turn | Location | Event 2 | -11/Scrapyard | Met Revision 17 53 | -11/Scrapyard | Discovered new exit (range 8) 79 | -11/Scrapyard | Entered Materials 229 | -10/Materials | Core integrity fell below 50% 229 | -10/Materials | Core integrity fell below 20% 236 | -10/Materials | Destroyed by G-34 Mercenary with Small Laser Last Messages --------------- ALERT: Suspicious activity at Terminal M005. Dispatching Investigation squad. G-47 Trooper destroyed. Switching to secondary target: G-34 Mercenary. Acquired 26 matter. Acquired Particle Gun. K-01 Serf collects debris. O-16 Technician: "IFF HANDSHAKE FAILED. SECURING TERMINAL." K-01 Serf collects debris. ALERT: Hostiles spotted, dispatching reinforcements to Terminal M003. K-01 Serf collects debris. Terminal unresponsive. Wheel destroyed. Fusion Modulator explodes. G-34 Mercenary destroyed. Destroyed Aluminum Leg. G-34 Mercenary destroyed. Terminal disabled. Wheel destroyed. Lgt. Ion Engine destroyed. Map ----- +----------------------------------------------------+ | ???????????# ?????# "T" !#??# #?? | | ???????????# ?????# """ #??# #?? | | ???????????#+?????# =% #??# ### | | ???????????# #########/###### # | | ???????????# | | ???????????+ | | ???????????# | | ???????????# #######/########## | | ???????????# #?# #????## | | ???????????# #?# #?????# | | ???????????# #?# #?????# | | ???????????# #?# #?????# | | ???????????# ########+####?????# | | ???????????# ???? | | ???????????# ???? | | ???????????+ #######+####??????? | | #######????# #?????????????????? | | # [ ###### #????????????????? | | # # ####??????????????### | | # # + ""???????????? | | # + ;;;;;####????????????????? | | #%! # ; #?????????????????? | | #! # ; g g ##????????????????? | | #! #;;=%[ ;#????????????????? | | ####### ;%! ;#????????????????? | | ??????# ;@* ;#????????????????? | | ??????# ;[%g ;#????????????????? | | ??????## ;;;;;;;;#????????????????? | | | | | | | | | | | | | | | | | | | | | | | | | | | | | | | | | | | | | | | | | | | | | +----------------------------------------------------+ Best States ------------- Heat Dissipation 35 Energy Generation 10 Energy Capacity 125 Matter Stores 300 Matter Capacity 300 Sight Range 16 Robot Scan Range 10 Terrain Scan Density 10 Evasion (%) 50 Item Schematics ----------------- None Robot Schematics ------------------ None Fabricated ------------ Nothing Alien Tech Used ----------------- None Achievements -------------- None Challenges ------------ None Game ------ Seed ThrusterElectronArray Manual? 0 Play Time 00:09:35 Cumulative 1.1 hours Start 2019.11.02 @ 14:33:13 End 2019.11.02 @ 14:39:12 Sessions 1 Manual Loads 0 Difficulty Rogue Special Mode None Game No. 3 Rogue 3 Adventurer 0 Explorer 0 Win Type - Total 0 Types 0/0/0/0/0/0/0 Lore% 0 Gallery% 2 Achievement% 3 Wizard Run 0 Options --------- ASCII 0 Keyboard 0 Movement Mouse Keybinds 0 Fullscreen 0 Font 18/Terminus Map View 76x50 Tactical HUD 0 Map Filters NONE Filters NONE Steam 1 RUN: 3946478e-0ffb-42b6-9376-621e493c3f5d